Cogmind - Beta 11.1 --- EXPLORER MODE // 2022.08.26 @ 00:11:21 Player: Analote Result: Destroyed by Enhanced Grunt with Neutron Cannon Performance ------------- Evolutions (3) 1500 Regions Visited (10) 2000 Robots Destroyed (95) 475 Value Destroyed (4043) 4043 Prototype IDs (12) 240 Alien Tech Used (0) 0 Bonus (1211) 1211 TOTAL SCORE: 9469 Bonus ------- High Alert Combat Kills 211 Entered Garrisons 200 Used RIF Installer 500 Met Data Miner 300 Cogmind --------- Core Integrity 0/700 Matter 300/300 Energy 100/100 System Corruption 2% Temperature Cool (-100) Movement Core (200) Ox3 Location -7/Data Miner Parts ------- > --- POWER (1) -------- (None) > --- PROPULSION (3) --- (None) > --- UTILITY (5) ------ Cryofiber Web Medium Storage Unit > --- WEAPON (5) ------- (None) > --- INVENTORY (10) --- Ion Engine Cooling System High-capacity Matter Pod (200) Terrain Scan Processor Targeting Computer Armor Integrity Analyzer Particle Charger Improved Light Armor Plating Shield Generator Peak State ------------ > --- POWER ------------ Deuterium Engine > --- PROPULSION ------- Improved Cesium-ion Thruster Improved Cesium-ion Thruster Improved Cesium-ion Thruster > --- UTILITY ---------- Cryofiber Web Improved Heat Sink Medium Storage Unit High-capacity Matter Pod Layered Light Armor Plating > --- WEAPON ----------- Lightning Gun Lightning Gun Lightning Gun Lightning Gun > --- INVENTORY -------- Ion Engine Improved Treads Medium Treads Cooling System High-capacity Matter Pod Terrain Scan Processor Targeting Computer Armor Integrity Analyzer Improved Light Armor Plating Shield Generator [Rating: 48] Favorites ----------- Power Deuterium Engine Engine Deuterium Engine Propulsion Improved Treads Treads Improved Treads Leg Aluminum Leg Flight Unit Improved Cesium-ion Thruster Utility High-capacity Matter Pod Device Improved Heat Sink Storage High-capacity Matter Pod Hackware Relay Coupler [NC] Protection Utility Shielding Weapon Lightning Gun Energy Gun Lightning Gun Energy Cannon Light EM Pulse Cannon Ballistic Gun Minigun Ballistic Cannon Flak Cannon Launcher Concussive RPG Special Weapon Enhanced Flamer Special Melee Weapon Improved Datajack Build | -11 -10 -9 -9 -8 -7 -7 -7 -7 -7 -7 ------- Run | Scr Mat Mat Min Mat Fac Gar Fac Low Low Dat Slots Evolved 7 | . 1 2 . 2 2 . . . . . Power . | . . . . . . . . . . . Propulsion 1 | . . . . 1 . . . . . . Utility 3 | . 1 2 . . . . . . . . Weapon 3 | . . . . 1 2 . . . . . Parts Attached 58 | 7 3 8 . 16 3 5 13 3 . . Power 4 | 1 . 2 . . . . 1 . . . Engine 4 | 1 . 2 . . . . 1 . . . Core . | . . . . . . . . . . . Reactor . | . . . . . . . . . . . Propulsion 13 | 2 . 2 . 3 1 . 3 2 . . Treads 8 | . . 2 . 3 1 . . 2 . . Leg 2 | 2 . . . . . . . . . . Wheel . | . . . . . . . . . . . Hover . | . . . . . . . . . . . Flight 3 | . . . . . . . 3 . . . Utility 13 | 2 1 2 . 1 . 4 3 . . . Device 5 | . . 2 . 1 . 1 1 . . . Storage 3 | 1 1 . . . . 1 . . . . Processor . | . . . . . . . . . . . Hackware 2 | . . . . . . 1 1 . . . Protection 3 | 1 . . . . . 1 1 . . . Artifact . | . . . . . . . . . . . Weapon 28 | 2 2 2 . 12 2 1 6 1 . . Energy Gun 4 | . . . . . . . 4 . . . Energy Cannon 3 | . . . . 3 . . . . . . Ballistic Gun 10 | 2 2 . . 3 2 . 1 . . . Ballistic Cannon 6 | . . 2 . 3 . 1 . . . . Launcher 3 | . . . . 3 . . . . . . Special Weapon 1 | . . . . . . . . 1 . . Impact Weapon . | . . . . . . . . . . . Slashing Weapon . | . . . . . . . . . . . Piercing Weapon . | . . . . . . . . . . . Special Melee Weapon 1 | . . . . . . . 1 . . . Unidentified Prototypes 2 | . . 1 . . . . 1 . . . Parts Lost 17 | . . . . . . 4 2 . . 11 Power 1 | . . . . . . . . . . 1 Propulsion 3 | . . . . . . 1 . . . 2 Utility 5 | . . . . . . 2 . . . 3 Weapon 8 | . . . . . . 1 2 . . 5 Highest Loss Streak 11 | . . . . . . 3 2 . . 11 To Critical Strikes . | . . . . . . . . . . . Average Slot Usage (%) 93 | . 98 94 100 98 99 95 87 91 92 79 Engine 7 | . 12 10 10 8 7 7 7 7 7 6 Treads 15 | . . 10 20 24 21 19 13 14 14 12 Leg 2 | . 25 8 . . . . . . . . Device 12 | . . 15 20 16 14 9 10 14 14 13 Storage 16 | . 23 20 20 16 14 17 17 14 14 13 Protection 7 | . 12 10 10 8 7 5 5 7 7 6 Energy Gun 11 | . . . . . . . 15 28 28 22 Ballistic Gun 11 | . 25 . . 10 34 33 10 . . . Ballistic Cannon 4 | . . 19 20 9 . 1 3 . . . Special Weapon 2 | . . . . . . . . 6 7 5 Naked Turns . | . . . . . . . . . . . Heaviest Build 49 | 20 25 37 37 43 40 48 49 47 47 47 Greatest Support 71 | 20 20 40 40 63 71 71 51 51 51 51 Greatest Overweight (x) 7 | 1 1 1 . 1 . . 7 . . 7 Average Overweight (x) . | . . . . . . . . . . . Largest Inventory Capacity 10 | 10 10 10 10 10 10 10 10 10 10 10 Average Capacity 9 | 7 10 10 10 10 10 10 10 10 10 10 Most Carried 10 | 2 3 10 9 10 8 10 10 10 9 9 Average Carried 7 | . 1 8 9 8 7 8 7 8 9 9 Final Capacity 10 | 10 10 10 10 10 10 10 10 10 10 10 Final Carried 10 | . 3 9 9 9 8 7 10 9 9 9 Class Distribution -------------------- 61% | Hacker-Tank 26% | Hacker-Mutant 12% | Hacker-Gunner Dominant Class ---------------- Hacker-Mutant | -10/Materials Hacker-Mutant | -9/Materials Hacker-Mutant | -9/Mines Hacker-Tank | -8/Materials Hacker-Gunner | -7/Factory Hacker-Tank | -7/Garrison Hacker-Tank | -7/Factory Hacker-Tank | -7/Lower Caves Hacker-Tank | -7/Lower Caves Hacker-Tank | -7/Data Miner Resources | -11 -10 -9 -9 -8 -7 -7 -7 -7 -7 -7 ----------- Run | Scr Mat Mat Min Mat Fac Gar Fac Low Low Dat Matter Collected 2898 | 115 262 692 60 684 156 611 254 30 34 . Remotely 1916 | . . 554 60 684 156 462 . . . . Salvage Created 3579 | . 193 538 3 803 63 848 587 60 484 . Parts 163 | . 8 45 . 39 3 35 20 3 10 . Haulers Intercepted 9 | . 1 6 . 1 . . 1 . . . Recyclers Shooed . | . . . . . . . . . . . Parts Field Recycled . | . . . . . . . . . . . Retrieved Matter . | . . . . . . . . . . . Parts Self-Destructed . | . . . . . . . . . . . Prevented . | . . . . . . . . . . . Kills | -11 -10 -9 -9 -8 -7 -7 -7 -7 -7 -7 ------- Run | Scr Mat Mat Min Mat Fac Gar Fac Low Low Dat Combat Hostiles Destroyed 73 | . 3 13 2 20 1 17 7 2 8 . Guns 37 | . 3 . . 4 1 17 3 2 7 . Cannons 31 | . . 13 2 15 . . 1 . . . AOE 2 | . . . . 1 . . 1 . . . Classes Destroyed 12 | . 3 4 1 1 1 1 1 . . . Worker 2 | . . 1 . . . . 1 . . . Hauler 9 | . 1 6 . 1 . . 1 . . . Recycler 1 | . . . . 1 . . . . . . Operator 1 | . . . . . . . 1 . . . Watcher 11 | . 1 3 . 4 1 . 2 . . . Swarmer 12 | . . 3 . 2 . 3 2 2 . . Grunt 40 | . 3 5 . 11 . 11 4 . 6 . Brawler 3 | . . . . . . 1 . . 2 . Duelist 4 | . . 1 . 3 . . . . . . Sentry 10 | . . 4 . 4 . 1 1 . . . Hunter 2 | . . . . . 1 1 . . . . Assembled 2 | . . . 2 . . . . . . . Best Kill Streak 8 | . 2 5 2 7 1 8 3 2 3 . Combat Bots Only 8 | . 1 3 2 3 1 8 2 2 3 . Max Kills in Single Turn 2 | . 1 2 1 1 1 2 2 1 2 . Gunslinging 1 | . . . . . . 1 . . 1 . Exploded 1 | . . . . 1 . . 1 . . . Melee . | . . . . . . . . . . . Uniques/NPCs Destroyed . | . . . . . . . . . . . Combat | -11 -10 -9 -9 -8 -7 -7 -7 -7 -7 -7 -------- Run | Scr Mat Mat Min Mat Fac Gar Fac Low Low Dat Damage Taken 3581 | . 145 212 63 512 11 443 595 35 172 1393 Core 850 | . 31 34 11 70 . 22 27 . . 655 Absorbed by Shields . | . . . . . . . . . . . Redirected to Shielding 41 | . 3 3 2 15 . 18 . . . . Core Remaining (%) 90 | 100 87 . 88 87 . . . . . . Volleys Fired 181 | . 21 30 5 49 7 31 18 3 11 6 Largest 5 | . 2 2 2 3 5 5 5 5 5 5 Hottest 300 | . 43 88 88 168 125 144 220 300 300 300 Shots Fired 581 | . 42 60 10 136 35 144 74 15 46 19 Gun 395 | . 42 . . 30 35 143 69 14 44 18 Cannon 180 | . . 60 10 104 . 1 5 . . . Launcher 2 | . . . . 2 . . . . . . Special 4 | . . . . . . . . 1 2 1 Kinetic 412 | . 42 60 10 99 35 144 22 . . . Thermal 4 | . . . . . . . . 1 2 1 Explosive 2 | . . . . 2 . . . . . . Electromagnetic 163 | . . . . 35 . . 52 14 44 18 Robot Hit Streak 40 | . 12 23 6 29 14 40 8 9 16 9 Robot Miss Streak 7 | . 1 7 7 5 2 1 2 1 2 1 Penetration Max . | . . . . . . . . . . . Secondary Targets 7 | . . . . . . 5 1 . 1 . Max Gunslinging Chain 2 | . . . . . . 2 1 . 1 . Shots Hit Robots 421 | . 31 47 9 113 19 99 52 4 33 14 Core Hits 272 | . 12 69 12 89 5 38 21 3 17 6 Critical Kills 2 | . . . . . 1 1 . . . . Critical Parts Destroyed 1 | . . . . . . 1 . . . . Critical Strikes 9 | . . . . . 1 2 1 . 3 2 Burn 1 | . . . . . . . . . 1 . Destroy 3 | . . . . . 1 2 . . . . Corrupt 5 | . . . . . . . 1 . 2 2 Melee Attacks 10 | . . . . . . . 10 . . . Impact . | . . . . . . . . . . . Slashing . | . . . . . . . . . . . Piercing . | . . . . . . . . . . . Sneak Attacks 8 | . . . . . . . 8 . . . Combat Hostiles . | . . . . . . . . . . . Follow-up Attacks . | . . . . . . . . . . . Damage Inflicted 8413 | . 379 1189 174 2509 277 1690 1080 52 911 152 Guns 4438 | . 379 . . 420 277 1690 795 52 673 152 Cannons 3351 | . . 1189 174 1899 . . 89 . . . Explosions 614 | . . . . 190 . . 196 . 228 . Melee . | . . . . . . . . . . . Ramming . | . . . . . . . . . . . Kinetic 5647 | . 379 1189 174 1664 277 1690 274 . . . Thermal 579 | . . . . 145 . . 196 . 238 . Explosive 45 | . . . . 45 . . . . . . Electromagnetic 2113 | . . . . 626 . . 610 52 673 152 Impact 29 | . . . . 29 . . . . . . Slashing . | . . . . . . . . . . . Piercing . | . . . . . . . . . . . Highest Corruption 2 | . . . . . . 2 2 2 2 2 Average Corruption 2 | . . . . . . 2 2 2 2 2 Corruption Purged . | . . . . . . . . . . . Corruption Blocked . | . . . . . . . . . . . Effects 40 | . . . . . . 4 7 13 13 3 Message Errors 17 | . . . . . . 2 2 8 3 2 Matter Fused 4 | . . . . . . . . 1 3 . Heat Flow Errors 7 | . . . . . . . 2 1 3 1 Energy Discharges 4 | . . . . . . 1 1 . 2 . Data Loss (minor) 4 | . . . . . . 1 2 . 1 . Data Loss (major) 2 | . . . . . . . . 1 1 . Misfires 2 | . . . . . . . . 2 . . Overload Shots . | . . . . . . . . . . . Overflow Damage 46 | . . . . 46 . . . . . . Projectiles 19 | . . . . 19 . . . . . . Explosions 27 | . . . . 27 . . . . . . Melee . | . . . . . . . . . . . Knockbacks 53 | . . 15 5 32 . . 1 . . . Impact . | . . . . . . . . . . . Kinetic 53 | . . 15 5 32 . . 1 . . . Secondary . | . . . . . . . . . . . Self-Inflicted Damage . | . . . . . . . . . . . Shots . | . . . . . . . . . . . Rammed . | . . . . . . . . . . . Targets Rammed . | . . . . . . . . . . . Kicked . | . . . . . . . . . . . Crushed . | . . . . . . . . . . . Highest Temperature 477 | . 3 168 63 407 216 477 214 98 187 231 Average Temperature 99 | . 2 43 27 132 108 143 54 33 73 103 Received Heat Transfer 1215 | . 129 96 . 405 . 270 171 . 144 . Effects 7 | . . . . 1 . 6 . . . . Shutdowns 2 | . . . . . . 2 . . . . Energy Bleed 1 | . . . . . . 1 . . . . Interference 2 | . . . . . . 2 . . . . Short Circuit 1 | . . . . 1 . . . . . . Damage (major) 1 | . . . . . . 1 . . . . Siege Activations . | . . . . . . . . . . . Robots Corrupted 3 | . . . . . . . 2 . 1 . Combat Hostiles 3 | . . . . . . . 2 . 1 . Parts Fried 18 | . . . . 8 . . 7 . 3 . Impact Corruptions . | . . . . . . . . . . . Robots Melted . | . . . . . . . . . . . Combat Hostiles . | . . . . . . . . . . . Parts Melted . | . . . . . . . . . . . Heat Transferred 840 | . . . . 150 . . 200 . 490 . Parts Sabotaged . | . . . . . . . . . . . Parts Stolen . | . . . . . . . . . . . Parts Stripped . | . . . . . . . . . . . Power Chain Reactions 7 | . . . . 1 . . 3 . 3 . Missiles Intercepted . | . . . . . . . . . . . Alert | -11 -10 -9 -9 -8 -7 -7 -7 -7 -7 -7 ------- Run | Scr Mat Mat Min Mat Fac Gar Fac Low Low Dat Peak Influence 793 | . 124 257 68 793 203 628 319 . . . Initial 244 | . . 37 68 18 193 93 244 . . . Average 228 | . 59 111 68 417 190 402 171 . . . Maximum Alert Level 3 | . . 1 . 3 1 2 1 . . . Low Security (%) 56 | 100 100 81 100 24 88 22 48 . . . Level 1 22 | . . 18 . 7 11 28 51 . . . Level 2 19 | . . . . 61 . 48 . . . . Level 3 1 | . . . . 5 . . . . . . Level 4 . | . . . . . . . . . . . Level 5 . | . . . . . . . . . . . High Security . | . . . . . . . . . . . Max Security . | . . . . . . . . . . . Squads Dispatched 9 | . . 2 . 4 1 . 2 . . . Investigation . | . . . . . . . . . . . Extermination 1 | . . . . . . . 1 . . . Reinforcement 4 | . . 2 . 1 . . 1 . . . Assault 1 | . . . . 1 . . . . . . Garrison 3 | . . . . 2 1 . . . . . Intercept . | . . . . . . . . . . . Searches Triggered . | . . . . . . . . . . . Construction Impeded 1 | . . . . 1 . . . . . . Haulers Reinforced . | . . . . . . . . . . . Active Scanning Responses . | . . . . . . . . . . . Cargo Convoy Interrupts . | . . . . . . . . . . . Stealth | -11 -10 -9 -9 -8 -7 -7 -7 -7 -7 -7 --------- Run | Scr Mat Mat Min Mat Fac Gar Fac Low Low Dat Distress Signals 9 | . 2 2 . 4 1 . . . . . Communications Jammed . | . . . . . . . . . . . Distress Signals . | . . . . . . . . . . . Times Spotted 111 | . 8 17 3 30 6 18 14 2 9 4 Peak Tracking Total 5 | . 2 5 2 5 3 4 2 1 3 4 Tactical Retreats 6 | . 1 . . 3 . 1 . . 1 . Traps | -11 -10 -9 -9 -8 -7 -7 -7 -7 -7 -7 ------- Run | Scr Mat Mat Min Mat Fac Gar Fac Low Low Dat Traps Triggered 3 | . 1 . . 1 . 1 . . . . Indirectly . | . . . . . . . . . . . Trap Hack Attempts . | . . . . . . . . . . . Triggered . | . . . . . . . . . . . Disarmed . | . . . . . . . . . . . Reprogrammed . | . . . . . . . . . . . Reused . | . . . . . . . . . . . Traps Extracted . | . . . . . . . . . . . Installed . | . . . . . . . . . . . Triggered . | . . . . . . . . . . . Machines | -11 -10 -9 -9 -8 -7 -7 -7 -7 -7 -7 ---------- Run | Scr Mat Mat Min Mat Fac Gar Fac Low Low Dat Machines Disabled 13 | . . . . 3 . 3 6 . . 1 Max in Single Turn 2 | . . . . 2 . 1 2 . . 1 Garrison Access 1 | . . . . 1 . . . . . . Garrison Relay 3 | . . . . . . 3 . . . . Machines Sabotaged . | . . . . . . . . . . . Garrisons Compromised . | . . . . . . . . . . . Overloaded Fab Kills . | . . . . . . . . . . . Hacking | -11 -10 -9 -9 -8 -7 -7 -7 -7 -7 -7 --------- Run | Scr Mat Mat Min Mat Fac Gar Fac Low Low Dat Machines Accessed 10 | . 1 1 . . 2 . . 2 . 4 Terminals 2 | . 1 1 . . . . . . . . Fabricators 1 | . . . . . 1 . . . . . Repair Stations . | . . . . . . . . . . . Recycling Units . | . . . . . . . . . . . Scanalyzers . | . . . . . . . . . . . Garrison Access 1 | . . . . . 1 . . . . . Total Hacks 39 | . 1 1 . . 4 . . 2 . 31 Successful 38 | . 1 1 . . 3 . . 2 . 31 Failed 1 | . . . . . 1 . . . . . Catastrophic . | . . . . . . . . . . . Database Lockouts . | . . . . . . . . . . . Manual 1 | . . . . . . . . 1 . . Terminals 2 | . 1 1 . . . . . . . . Fabricators 2 | . . . . . 2 . . . . . Repair Stations . | . . . . . . . . . . . Recycling Units . | . . . . . . . . . . . Scanalyzers . | . . . . . . . . . . . Garrison Access 2 | . . . . . 2 . . . . . Terminal Hacks 35 | . 1 1 . . . . . 2 . 31 Record 12 | . . . . . . . . 1 . 11 Part Schematic 12 | . . . . . . . . . . 12 Robot Schematic 5 | . . . . . . . . . . 5 Prototype ID Bank 3 | . . . . . . . . . . 3 Open Door 1 | . . . . . . . . 1 . . Branch Access Points 1 | . . 1 . . . . . . . . Dispatch Records 1 | . 1 . . . . . . . . . Fabricator Hacks 2 | . . . . . 2 . . . . . Network Status 1 | . . . . . 1 . . . . . Build 1 | . . . . . 1 . . . . . Repair Station Hacks . | . . . . . . . . . . . Recycling Unit Hacks . | . . . . . . . . . . . Scanalyzer . | . . . . . . . . . . . Garrison Access Hacks 1 | . . . . . 1 . . . . . Unlock Access 1 | . . . . . 1 . . . . . Unauthorized Hacks . | . . . . . . . . . . . Terminals . | . . . . . . . . . . . Fabricators . | . . . . . . . . . . . Repair Stations . | . . . . . . . . . . . Recycling Units . | . . . . . . . . . . . Scanalyzers . | . . . . . . . . . . . Garrison Access . | . . . . . . . . . . . Data Cores Recovered . | . . . . . . . . . . . Used . | . . . . . . . . . . . Hacking Detections 2 | . . . . . 2 . . . . . Full Trace Events . | . . . . . . . . . . . Feedback Events . | . . . . . . . . . . . Feedback Blocked . | . . . . . . . . . . . Robot Schematics Acquired 5 | . . . . . . . . . . 5 Robots Built 3 | . . . . . 3 . . . . . Authchips . | . . . . . . . . . . . Time 99 | . . . . . 99 . . . . . Total Robot Build Rating 6 | . . . . . 6 . . . . . Part Schematics Acquired 12 | . . . . . . . . . . 12 Parts Built . | . . . . . . . . . . . Authchips . | . . . . . . . . . . . Time . | . . . . . . . . . . . Total Part Build Rating . | . . . . . . . . . . . Parts Repaired . | . . . . . . . . . . . Time . | . . . . . . . . . . . Parts Recycled . | . . . . . . . . . . . Recycled Matter . | . . . . . . . . . . . Retrieved Matter . | . . . . . . . . . . . Retrieved Components . | . . . . . . . . . . . Parts Scanalyzed . | . . . . . . . . . . . Part Schematics Acquired . | . . . . . . . . . . . Parts Damaged . | . . . . . . . . . . . Bothacking | -11 -10 -9 -9 -8 -7 -7 -7 -7 -7 -7 ------------ Run | Scr Mat Mat Min Mat Fac Gar Fac Low Low Dat Used RIF Installer 1 | . . . . . . 1 . . . . Robots Hacked 4 | . . . . . . . 4 . . . Non-combat 4 | . . . . . . . 4 . . . Combat . | . . . . . . . . . . . Robot Hacks Applied 7 | . . . . . . . 7 . . . parse_system 1 | . . . . . . . 1 . . . generate_anomaly 1 | . . . . . . . 1 . . . ignore_parts 1 | . . . . . . . 1 . . . overload_power 2 | . . . . . . . 2 . . . streamctrl_low 1 | . . . . . . . 1 . . . formatsys_low 1 | . . . . . . . 1 . . . Relay Couplers Released 12 | . . . . 1 . 11 . . . . Machine Destruction 12 | . . . . 1 . 11 . . . . Attached 2 | . . . . . . 1 1 . . . Fabnet Peak Effective % . | . . . . . . . . . . . Robots Rewired . | . . . . . . . . . . . Allies Hacked . | . . . . . . . . . . . Hacks Repelled . | . . . . . . . . . . . Allies | -11 -10 -9 -9 -8 -7 -7 -7 -7 -7 -7 -------- Run | Scr Mat Mat Min Mat Fac Gar Fac Low Low Dat Total Allies 5 | . . . . . 3 . 2 . . . Largest Group 3 | . . . . . 3 . 2 . . . Highest-Rated Group 54 | . . . . . 54 . 20 . . . Highest-Rated Ally 18 | . . . . . 18 . 10 . . . Total Orders 3 | . . . . . 1 . 2 . . . FOLLOW 1 | . . . . . . . 1 . . . GUARD 1 | . . . . . 1 . . . . . TUNNEL 1 | . . . . . . . 1 . . . Ally Attacks 1 | . . . . . 1 . . . . . Total Damage . | . . . . . . . . . . . Kills . | . . . . . . . . . . . Allies Corrupted . | . . . . . . . . . . . Allies Melted . | . . . . . . . . . . . Intel | -11 -10 -9 -9 -8 -7 -7 -7 -7 -7 -7 ------- Run | Scr Mat Mat Min Mat Fac Gar Fac Low Low Dat Robot Analysis Total . | . . . . . . . . . . . Derelict Logs Recovered 2 | . . . . . . . . 1 1 . Drone Launches . | . . . . . . . . . . . Drone Recoveries . | . . . . . . . . . . . Exploration | -11 -10 -9 -9 -8 -7 -7 -7 -7 -7 -7 ------------- Run | Scr Mat Mat Min Mat Fac Gar Fac Low Low Dat Turns Passed 5450 | 60 392 571 190 675 325 650 880 810 717 180 Spaces Moved 2802 | 43 184 241 110 296 124 336 462 495 421 90 Core 13 | 11 . . . . . . . . . 2 Treads 2448 | . . 142 110 296 124 336 436 495 421 88 Legs 315 | 32 184 99 . . . . . . . . Wheels . | . . . . . . . . . . . Hover . | . . . . . . . . . . . Flight 26 | . . . . . . . 26 . . . Fastest Speed 50 | 50 120 160 160 160 160 160 159 160 160 160 Average Speed 163 | 109 175 181 160 163 160 160 165 160 160 165 Slowest Speed 530 | 120 190 240 160 240 160 160 530 160 160 400 Overloaded Moves . | . . . . . . . . . . . Propulsion Burnouts . | . . . . . . . . . . . Robots Hopped . | . . . . . . . . . . . Cave-ins Triggered . | . . . . . . . . . . . Exploration Rate (%) 38 | 4 41 34 35 27 5 55 20 59 72 75 Regions Visited 10 Branch Regions 4 Pre-discovered Areas 2 | . . . . . . . . 1 . 1 Known Exits Taken 9 | 1 1 1 1 1 1 . 1 1 1 . Unknown Exits Taken . | . . . . . . . . . . . Scrap Searched 3 | . . . . . . . . . 3 . Spaces Dug . | . . . . . . . . . . . Terrain Destroyed 73 | . . . . 54 . . 5 . 14 . Melee . | . . . . . . . . . . . Projectile . | . . . . . . . . . . . AOE 73 | . . . . 54 . . 5 . 14 . Terrain Rammed . | . . . . . . . . . . . Walls Destroyed . | . . . . . . . . . . . Machines Disabled . | . . . . . . . . . . . Actions | -11 -10 -9 -9 -8 -7 -7 -7 -7 -7 -7 --------- Run | Scr Mat Mat Min Mat Fac Gar Fac Low Low Dat Total 3309 | 56 211 316 114 393 238 396 536 507 435 107 Wait 169 | . . 14 . 8 102 20 10 . 4 11 Move 2791 | 42 183 240 109 295 123 334 461 494 420 90 Hop . | . . . . . . . . . . . Pick Up 65 | 7 4 16 . 15 2 4 14 3 . . Fast Attach . | . . . . . . . . . . . Attach 35 | 7 1 4 . 6 2 5 7 3 . . Detach 1 | . . . . . . . 1 . . . Swap 23 | . 2 4 . 10 1 . 6 . . . Drop 34 | . . 8 . 10 1 2 9 4 . . Fire 181 | . 21 30 5 49 7 31 18 3 11 6 Melee 10 | . . . . . . . 10 . . . Ram . | . . . . . . . . . . . Kick . | . . . . . . . . . . . Crush . | . . . . . . . . . . . Escape Stasis . | . . . . . . . . . . . Rewire . | . . . . . . . . . . . Trap . | . . . . . . . . . . . Miscellaneous . | . . . . . . . . . . . Route ------- -11/Scrapyard -10/Materials (discovered 2 exits: *Mat / *Min) -9/Materials (discovered 4 exits: *Min x2 / *Sto x2) -9/Mines (discovered 2 exits: *Mat x2) -8/Materials -7/Factory -7/Garrison -7/Factory -7/Lower Caves -7/Lower Caves (discovered 2 exits: *Fac / *Dat) -7/Data Miner (discovered 1 exit: *Pro) History --------- Turn | Location | Event 11 | -11/Scrapyard | Identified exit to Materials 11 | -11/Scrapyard | Discovered exit to Materials (range 16) 61 | -11/Scrapyard | Entered Materials 61 | -10/Materials | Evolved 1 slot: Utility x1 258 | -10/Materials | Identified exit to Mines 258 | -10/Materials | Discovered exit to Mines (range 14) 301 | -10/Materials | Build established: Hacker-Mutant 429 | -10/Materials | Identified exit to Materials 429 | -10/Materials | Discovered exit to Materials (range 10) 453 | -10/Materials | Entered another Materials area 453 | -9/Materials | Evolved 2 slots: Utility x2 516 | -9/Materials | Identified exit to Mines 516 | -9/Materials | Identified exit to Storage 1024 | -9/Materials | Entered Mines 1064 | -9/Mines | Identified exit to Materials 1064 | -9/Mines | Discovered exit to Materials (range 10) 1160 | -9/Mines | Assembled infested the area 1172 | -9/Mines | Discovered exit to Materials (range 15) 1214 | -9/Mines | Entered Materials 1214 | -8/Materials | Evolved 2 slots: Propulsion x1, Weapon x1 1328 | -8/Materials | Garrison activated, responded to threat 1718 | -8/Materials | Build established: Hacker-Tank 1869 | -8/Materials | Identified exit to Factory 1869 | -8/Materials | Discovered exit to Factory (range 9) 1889 | -8/Materials | Entered Factory 1889 | -7/Factory | Evolved 2 slots: Weapon x2 2048 | -7/Factory | Fabricated L-31 Rogue (x3) 2096 | -7/Factory | Garrison activated, responded to threat 2167 | -7/Factory | Build established: Hacker-Gunner 2201 | -7/Factory | Identified exit to Garrison 2214 | -7/Factory | Entered Garrison 2222 | -7/Garrison | Installed Relay Interface Framework 2268 | -7/Garrison | Triggered checkpoint 2301 | -7/Garrison | Garrison Relay disabled 2348 | -7/Garrison | Triggered checkpoint 2380 | -7/Garrison | Triggered checkpoint 2407 | -7/Garrison | Destroyed 8 combat bots 2568 | -7/Garrison | Triggered checkpoint 2574 | -7/Garrison | Garrison Relay disabled 2650 | -7/Garrison | Triggered checkpoint 2708 | -7/Garrison | Triggered checkpoint 2772 | -7/Garrison | Lost 3 parts (1n1u1w) 2782 | -7/Garrison | Garrison Relay disabled 2843 | -7/Garrison | Identified exit to Factory 2843 | -7/Garrison | Discovered exit to Factory (range 9) 2864 | -7/Garrison | Entered Factory 3055 | -7/Factory | Build established: Hacker-Tank 3637 | -7/Factory | Identified exit to Lower Caves 3637 | -7/Factory | Discovered exit to Lower Caves (range 10) 3744 | -7/Factory | Entered Lower Caves 4212 | -7/Lower Caves | Acquired the password to a Derelict Tinkerer's latest research 4395 | -7/Lower Caves | Learned location of Zion (-6) 4530 | -7/Lower Caves | Identified exit to Lower Caves 4530 | -7/Lower Caves | Discovered exit to Lower Caves (range 15) 4554 | -7/Lower Caves | Entered another Lower Caves area 4630 | -7/Lower Caves | Identified exit to Factory 4630 | -7/Lower Caves | Discovered exit to Factory (range 16) 5140 | -7/Lower Caves | Learned Factory stockpile data 5250 | -7/Lower Caves | Identified exit to Data Miner 5250 | -7/Lower Caves | Discovered exit to Data Miner (range 13) 5271 | -7/Lower Caves | Entered Data Miner 5271 | -7/Data Miner | Identified exit to Proximity Caves 5271 | -7/Data Miner | Discovered exit to Proximity Caves (range 6) 5302 | -7/Data Miner | Met Data Miner 5377 | -7/Data Miner | Learned location of Section 7 (-2) 5377 | -7/Data Miner | Acquired the access code to Warlord's prototype stash 5388 | -7/Data Miner | Received God Mode back door access code from Data Miner 5396 | -7/Data Miner | Data Conduit disabled 5444 | -7/Data Miner | Core integrity fell below 50% 5450 | -7/Data Miner | Core integrity fell below 20% 5451 | -7/Data Miner | Destroyed by Enhanced Grunt with Neutron Cannon Last Messages --------------- out they're in his stash, behind the door with an access code of \\HAG4. 05385_ 05409_ Enh. Flamer destroyed. 05428_ Lightning Gun destroyed. 05430_ Imp. Treads destroyed. 05432_ Deuterium Engine destroyed. 05433_ Med. Treads destroyed. 05435_ Hcp. Matter Pod destroyed. 05438_ Lyr. Light Armor Plating destroyed. 05439_ Imp. Heat Sink destroyed. 05441_ Lightning Gun destroyed. 05442_ System corrupted: Heat flow error (+125). Map ----- +----------------------------------------------------+ | | | | | | | | | | | | | | | ?????????????????????????????????????????? | | ?????????????????????????????????????????? | | ?????????????????????????????????????????? | | ?????????????????????????????????????????? | | ?????????????????????????????????????####? | | ???????##############??????????????### #? | | ??????"""""""" """""######?#??????## #? | | ?????"""""""" """"""""# ######## > ##? | | ????""""""""" ## | | ????"""""" | | ????"""""" | | ????"""" | | ????"""""" | | ????""""" """"""""""""""""## | | ????""""""" """"###############? | | ?????"""""" gggg"""""###??????????????? | | ??????""""""" "#####????????????????? | | ??????######"#; ##???????????????????? | | ???????????#"##; @ ;#???????????????????? | | ???????????#"##; ##???????????????????? | | ???????????#"## ;#???????????????????? | | ???????????#"## "# #??????????????????? | | ?????????????# "#?#??????????????????? | | ?????????????#;# "#????????????????????? | | ?????????????### "##???????????????????? | | ??????????????## ""#???????????????????? | | ???????????#?## ""#???????????????????? | | ?????????"##"#"X ""#???????????????????? | | ?????????"""""" "####????????????????? | | ?????????#""""" X"""""????????????????? | | ?????????###"#"X "##"#????????????????? | | ???????????#"## X""""#????????????????? | | ??????????????## "##"#????????????????? | | ???????????????#######???????????????????? | | ?????????????????????????????????????????? | | ?????????????????????????????????????????? | | ?????????????????????????????????????????? | | ?????????????????????????????????????????? | | ?????????????????????????????????????????? | | ?????????????????????????????????????????? | | ?????????????????????????????????????????? | | ?????????????????????????????????????????? | | ?????????????????????????????????????????? | +----------------------------------------------------+ Best States ------------- Heat Dissipation 48 Energy Generation 14 Energy Capacity 280 Matter Stores 700 Matter Capacity 700 Sight Range 16 Terrain Scan Density 10 Base Temperature (-) 100 Armor Coverage 150 Resistance: KI 35 Resistance: TH 35 Resistance: EX 35 Resistance: EM 35 Resistance: I 35 Resistance: S 35 Resistance: P 35 Utility Shielding 33 Evasion (%) 55 Recoil Reduction 7 Offensive Hacking 20 Relay Coupler Types 1 Relay Coupler Value 38 Item Schematics ----------------- Combat Drone Bay | -7/Data Miner | Free Lgt. Regenerative Plating | -7/Data Miner | Free Cld. Cesium-ion Thruster | -7/Data Miner | Free Exp. Power Shielding | -7/Data Miner | Free Imp. Heavy Laser | -7/Data Miner | Free Cmb. Gravmag System | -7/Data Miner | Free Imp. Coolant Injector | -7/Data Miner | Free Lance | -7/Data Miner | Free Imp. Particle Charger | -7/Data Miner | Free Adv. Thermal Shield | -7/Data Miner | Free Imp. Dynamic Insulation System | -7/Data Miner | Free Adv. Target Analyzer | -7/Data Miner | Free Robot Schematics ------------------ M-28 Smith | -7/Data Miner | Free M-14 Sweeper | -7/Data Miner | Free S-27 Virus | -7/Data Miner | Free G-50 Soldier | -7/Data Miner | Free B-48 Gladiator | -7/Data Miner | Free Fabricated ------------ L-31 Rogue | x3 | -7/Factory | Preloaded Alien Tech Used ----------------- None Achievements -------------- None Challenges ------------ None Game ------ Seed NavigationGravityAutogun Manual? 0 Play Time 00:39:33 Cumulative 47.0 hours Start 2022.08.25 @ 23:32:17 End 2022.08.26 @ 00:11:21 Sessions 1 Manual Loads 0 Difficulty Explorer Special Mode None Game No. 70 Rogue 0 Adventurer 0 Explorer 70 Win Type - Total 1 Types 1/0/0/0/0/0/0/0/0 Lore% 37 Gallery% 48 Achievement% 44 Wizard Run 0 Options --------- ASCII 0 Keyboard 0 Movement Mouse Keybinds 0 Fullscreen 1 Font 18/SmallcapsGlow Map View 76x50 Tactical HUD 1 Map Filters NONE Filters NONE Steam 1 RUN: 3551bf53-a01b-4d3e-95d2-db5f66e35ea1